[Event "44th Chess Olympiad Open 2022"]
[Site "Chennai"]
[Date "2022.08.07"]
[Round "9.74"]
[White "Njau, Albert"]
[Black "Belzo, Krzysztof"]
[Result "1-0"]
[WhiteElo "1842"]
[BlackElo "2080"]
[Annotator "NA RC"]
[PlyCount "129"]
[EventDate "2022.??.??"]
[TimeControl "60"]

1. e4 {[%emt 0:00:10]} c5 {[%emt 0:00:13]} 2. c4 {[%emt 0:00:13]} g6 {[%emt 0:
00:00]} 3. Nf3 {[%emt 0:00:11]} Bg7 {[%emt 0:00:05]} 4. d4 {[%emt 0:00:28]}
cxd4 {[%emt 0:00:28]} 5. Nxd4 {[%emt 0:00:15]} Nf6 {[%emt 0:01:28]} 6. Nc3 {
[%emt 0:00:13]} O-O {[%emt 0:00:07]} 7. Be3 {[%emt 0:01:42]} d6 {[%emt 0:00:12]
} 8. Be2 {[%emt 0:00:29]} Nc6 {[%emt 0:00:10]} 9. f3 {[%emt 0:03:45]} Bd7 {
[%emt 0:09:04]} 10. Qd2 {[%emt 0:01:13]} a5 {[%emt 0:02:07]} 11. g4 {[%emt 0:
00:00]} a4 {[%emt 0:18:29]} 12. Nxc6 {[%emt 0:07:07]} Bxc6 {[%emt 0:08:15]} 13.
h4 {[%emt 0:01:04]} Qa5 {[%emt 0:07:50]} 14. Bd4 {[%emt 0:16:39]} Nd7 {[%emt 0:
00:00]} 15. Bxg7 {[%emt 0:14:10]} Kxg7 {[%emt 0:00:03]} 16. Nd1 {[%emt 0:01:11]
} Ne5 {[%emt 0:10:10]} 17. Ne3 {[%emt 0:06:12]} Rfb8 {[%emt 0:08:29]} 18. Rc1 {
[%emt 0:10:33]} Qxd2+ {[%emt 0:01:47]} 19. Kxd2 {[%emt 0:00:44]} Ra5 {[%emt 0:
00:00]} 20. b4 {[%emt 0:03:40]} axb3 {[%emt 0:01:04]} 21. axb3 {[%emt 0:00:27]}
Ra3 {[%emt 0:08:39]} 22. Kc3 {[%emt 0:01:42]} Ra2 {[%emt 0:02:18]} 23. Rc2 {
[%emt 0:06:01]} Ra3 {[%emt 0:00:07]} 24. Rcc1 {[%emt 0:02:34]} Ba4 {[%emt 0:00:
00]} 25. Rb1 {[%emt 0:00:37]} Bd7 {[%emt 0:04:23]} 26. Ra1 {[%emt 0:00:59]}
Raa8 {[%emt 0:00:38]} 27. Nc2 {[%emt 0:01:24]} f5 {[%emt 0:00:10]} 28. Rxa8 {
[%emt 0:05:45]} Rxa8 {[%emt 0:00:01]} 29. g5 {[%emt 0:00:28]} fxe4 {[%emt 0:00:
00]} 30. fxe4 {[%emt 0:00:43]} Rf8 {[%emt 0:02:02]} 31. Kd2 {[%emt 0:01:11]}
Rf2 {[%emt 0:00:59]} 32. Ke3 {[%emt 0:04:49]} Rg2 {[%emt 0:00:16]} 33. Nd4 {
[%emt 0:00:28]} Rg3+ {[%emt 0:02:27]} 34. Kd2 {[%emt 0:03:18]} Ng4 {[%emt 0:00:
00]} 35. Bxg4 {[%emt 0:01:55]} Bxg4 {[%emt 0:00:03]} 36. b4 {[%emt 0:00:17]} e5
{[%emt 0:00:45]} 37. Nb5 {[%emt 0:01:47]} Rb3 {[%emt 0:01:30]} 38. Nxd6 {
[%emt 0:00:00]} Rxb4 {[%emt 0:00:05]} 39. Kc3 {[%emt 0:00:00]} Rb6 {[%emt 0:00:
00]} 40. Ne8+ {[%emt 0:00:15]} Kf7 {[%emt 0:00:27]} 41. c5 {[%emt 0:30:54]} Rc6
{[%emt 0:30:37]} 42. Nf6 {[%emt 0:00:13]} Be6 {[%emt 0:00:00]} 43. Kb4 {
[%emt 0:00:00]} b6 {[%emt 0:00:00]} 44. cxb6 {[%emt 0:00:00]} Rxb6+ {[%emt 0:
00:00]} 45. Kc5 {[%emt 0:00:00]} Ra6 {[%emt 0:00:00]} 46. Nxh7 {[%emt 0:00:00]}
Ke7 {[%emt 0:00:00]} 47. Rb1 {[%emt 0:00:00]} Ra7 {[%emt 0:00:00]} 48. Nf6 {
[%emt 0:00:00]} Rc7+ {[%emt 0:00:00]} 49. Kb6 {[%emt 0:00:00]} Rc8 {[%emt 0:00:
00]} 50. Kb7 {[%emt 0:00:00]} Rh8 {[%emt 0:00:00]} 51. Rc1 {[%emt 0:00:00]}
Rxh4 {[%emt 0:00:00]} 52. Rc7+ {[%emt 0:00:00]} Kd8 {[%emt 0:00:26]} 53. Kc6 {
[%emt 0:00:00]} Bf5 {[%emt 0:03:14]} 54. Kd6 {[%emt 0:00:00]} Rxe4 {[%emt 0:00:
00]} 55. Nxe4 {[%emt 0:00:00]} Bxe4 {[%emt 0:00:02]} 56. Rh7 {[%emt 0:00:00]}
Ke8 {[%emt 0:00:10]} 57. Kxe5 {[%emt 0:00:00]} Bc2 {[%emt 0:00:42]} 58. Kf6 {
[%emt 0:00:00]} Bd3 {[%emt 0:00:09]} 59. Rh3 {[%emt 0:00:00]} Bc2 {[%emt 0:00:
00]} 60. Ra3 {[%emt 0:00:00]} Bf5 {[%emt 0:00:15]} 61. Ra8+ {[%emt 0:00:00]}
Kd7 {[%emt 0:00:02]} 62. Rg8 {[%emt 0:00:00]} Be4 {[%emt 0:00:09]} 63. Rxg6 {
[%emt 0:00:00]} Bxg6 {[%emt 0:00:21]} 64. Kxg6 {[%emt 0:00:00]} Ke7 {[%emt 0:
00:00]} 65. Kh7 {[%emt 0:00:00]} 1-0

[Event "44th Chess Olympiad Open 2022"]
[Site "Chennai"]
[Date "2022.08.07"]
[Round "9.74"]
[White "Gurner, Jem"]
[Black "Charles, Cleophas"]
[Result "1-0"]
[WhiteElo "1800"]
[BlackElo "1593"]
[Annotator "NA RC"]
[PlyCount "115"]
[EventDate "2022.??.??"]
[TimeControl "60"]

1. e4 {[%emt 0:00:03]} Nc6 {[%emt 0:00:15]} 2. Nf3 {[%emt 0:01:44]} g6 {
[%emt 0:00:36]} 3. d4 {[%emt 0:00:44]} Bg7 {[%emt 0:01:46]} 4. Nc3 {[%emt 0:00:
00]} d6 {[%emt 0:00:57]} 5. h3 {[%emt 0:00:44]} e6 {[%emt 0:03:24]} 6. Bg5 {
[%emt 0:01:43]} Nge7 {[%emt 0:01:51]} 7. Qd2 {[%emt 0:01:18]} a6 {[%emt 0:00:
00]} 8. a4 {[%emt 0:01:08]} f6 {[%emt 0:01:11]} 9. Bh6 {[%emt 0:02:54]} O-O {
[%emt 0:02:05]} 10. Bc4 {[%emt 0:08:02]} d5 {[%emt 0:05:14]} 11. Bxg7 {[%emt 0:
00:00]} Kxg7 {[%emt 0:00:33]} 12. Ba2 {[%emt 0:03:05]} b6 {[%emt 0:05:27]} 13.
O-O {[%emt 0:02:19]} Bb7 {[%emt 0:02:53]} 14. exd5 {[%emt 0:05:34]} Nxd5 {
[%emt 0:03:13]} 15. Rfe1 {[%emt 0:06:21]} Qd6 {[%emt 0:04:19]} 16. Bxd5 {
[%emt 0:19:32]} exd5 {[%emt 0:00:13]} 17. Re2 {[%emt 0:07:40]} Bc8 {[%emt 0:00:
00]} 18. Rae1 {[%emt 0:02:10]} Bd7 {[%emt 0:03:03]} 19. b3 {[%emt 0:02:53]} Rf7
{[%emt 0:05:19]} 20. Re3 {[%emt 0:08:02]} Nb4 {[%emt 0:04:58]} 21. Nb1 {
[%emt 0:04:23]} Bf5 {[%emt 0:03:55]} 22. Rc1 {[%emt 0:05:54]} Be4 {[%emt 0:00:
00]} 23. Nc3 {[%emt 0:02:26]} Re7 {[%emt 0:07:28]} 24. Nh4 {[%emt 0:02:17]}
Rae8 {[%emt 0:04:34]} 25. Nd1 {[%emt 0:05:22]} a5 {[%emt 0:04:04]} 26. Nb2 {
[%emt 0:01:45]} Qf4 {[%emt 0:04:13]} 27. g3 {[%emt 0:00:21]} Qd6 {[%emt 0:00:
00]} 28. c3 {[%emt 0:00:47]} Nc6 {[%emt 0:00:31]} 29. Rce1 {[%emt 0:00:53]} Qd7
{[%emt 0:01:07]} 30. Kh2 {[%emt 0:00:30]} Nd8 {[%emt 0:00:40]} 31. Qe2 {
[%emt 0:00:44]} Kf7 {[%emt 0:00:50]} 32. g4 {[%emt 0:01:28]} g5 {[%emt 0:00:48]
} 33. Nf3 {[%emt 0:00:41]} Ne6 {[%emt 0:00:25]} 34. Nd2 {[%emt 0:00:31]} Nf4 {
[%emt 0:00:18]} 35. Qd1 {[%emt 0:00:19]} Qd6 {[%emt 0:00:44]} 36. Nxe4 {
[%emt 0:00:21]} dxe4 {[%emt 0:00:18]} 37. Nc4 {[%emt 0:00:13]} Qd5 {[%emt 0:00:
00]} 38. Rg3 {[%emt 0:00:45]} f5 {[%emt 0:00:47]} 39. Ne3 {[%emt 0:00:08]} Qc6
{[%emt 0:00:33]} 40. Nxf5 {[%emt 0:00:08]} Re6 {[%emt 0:00:24]} 41. c4 {
[%emt 0:30:56]} Qd7 {[%emt 0:05:20]} 42. d5 {[%emt 0:00:00]} Rf6 {[%emt 0:00:
00]} 43. Qd4 {[%emt 0:00:00]} c5 {[%emt 0:07:23]} 44. Qe3 {[%emt 0:00:00]} h5 {
[%emt 0:05:34]} 45. f3 {[%emt 0:00:00]} exf3 {[%emt 0:07:56]} 46. Qxe8+ {
[%emt 0:00:00]} Qxe8 {[%emt 0:00:28]} 47. Rxe8 {[%emt 0:00:00]} Kxe8 {[%emt 0:
00:00]} 48. Rxf3 {[%emt 0:00:00]} hxg4 {[%emt 0:01:47]} 49. hxg4 {[%emt 0:00:
00]} Ng6 {[%emt 0:02:03]} 50. Re3+ {[%emt 0:00:00]} Kd7 {[%emt 0:00:36]} 51.
Kg3 {[%emt 0:00:00]} Kc7 {[%emt 0:01:29]} 52. Re1 {[%emt 0:00:00]} Rf7 {
[%emt 0:00:51]} 53. Re6 {[%emt 0:00:00]} Nf4 {[%emt 0:00:13]} 54. Rc6+ {
[%emt 0:00:00]} Kd7 {[%emt 0:00:54]} 55. Rxb6 {[%emt 0:00:00]} Ne2+ {[%emt 0:
00:00]} 56. Kf2 {[%emt 0:00:00]} Nf4 {[%emt 0:00:31]} 57. Rb7+ {[%emt 0:00:00]}
Ke8 {[%emt 0:00:21]} 58. Nd6+ {[%emt 0:00:00]} 1-0

[Event "44th Chess Olympiad Open 2022"]
[Site "Chennai"]
[Date "2022.08.07"]
[Round "9.74"]
[White "Mdoe, Yusuf"]
[Black "Forbes, Garry"]
[Result "1/2-1/2"]
[WhiteElo "1722"]
[BlackElo "1908"]
[Annotator "NA"]
[PlyCount "99"]
[EventDate "2022.??.??"]
[TimeControl "60"]

1. d4 {[%emt 0:00:12]} g6 {[%emt 0:00:07]} 2. c4 {[%emt 0:00:13]} Bg7 {[%emt 0:
00:00]} 3. Nc3 {[%emt 0:00:12]} d6 {[%emt 0:00:18]} 4. e4 {[%emt 0:01:16]} Nf6
{[%emt 0:00:02]} 5. Nf3 {[%emt 0:00:25]} O-O {[%emt 0:09:25]} 6. Be2 {[%emt 0:
00:00]} Bg4 {[%emt 0:00:02]} 7. Be3 {[%emt 0:00:57]} Nfd7 {[%emt 0:00:08]} 8.
Qd2 {[%emt 0:01:19]} c5 {[%emt 0:00:13]} 9. h4 {[%emt 0:03:28]} Nc6 {[%emt 0:
00:00]} 10. d5 {[%emt 0:01:27]} Bxf3 {[%emt 0:00:45]} 11. dxc6 {[%emt 0:05:08]}
Bxe2 {[%emt 0:00:03]} 12. cxb7 {[%emt 0:01:47]} Rb8 {[%emt 0:00:46]} 13. Kxe2 {
[%emt 0:02:46]} Rxb7 {[%emt 0:00:41]} 14. b3 {[%emt 0:01:19]} Qa5 {[%emt 0:00:
00]} 15. Rac1 {[%emt 0:00:57]} Rfb8 {[%emt 0:23:36]} 16. h5 {[%emt 0:00:44]}
Nf6 {[%emt 0:07:39]} 17. hxg6 {[%emt 0:04:06]} fxg6 {[%emt 0:00:48]} 18. Rh3 {
[%emt 0:03:49]} Rf8 {[%emt 0:03:16]} 19. Bg5 {[%emt 0:00:53]} Rf7 {[%emt 0:00:
00]} 20. f3 {[%emt 0:01:53]} Rb8 {[%emt 0:00:27]} 21. Rch1 {[%emt 0:03:37]}
Rbf8 {[%emt 0:06:10]} 22. Bxf6 {[%emt 0:01:43]} Bxf6 {[%emt 0:00:33]} 23. Nd5 {
[%emt 0:00:30]} Qxd2+ {[%emt 0:02:29]} 24. Kxd2 {[%emt 0:00:15]} Bd4 {[%emt 0:
00:00]} 25. a3 {[%emt 0:03:46]} e6 {[%emt 0:04:32]} 26. Nc3 {[%emt 0:03:38]}
Bxc3+ {[%emt 0:00:16]} 27. Kxc3 {[%emt 0:00:41]} a5 {[%emt 0:00:18]} 28. Rd1 {
[%emt 0:00:49]} Rd7 {[%emt 0:08:44]} 29. Rhh1 {[%emt 0:00:55]} e5 {[%emt 0:00:
00]} 30. Rd5 {[%emt 0:01:33]} Rfd8 {[%emt 0:00:11]} 31. b4 {[%emt 0:00:31]}
axb4+ {[%emt 0:04:18]} 32. axb4 {[%emt 0:00:48]} cxb4+ {[%emt 0:00:25]} 33.
Kxb4 {[%emt 0:00:16]} Rc8 {[%emt 0:04:59]} 34. Rb5 {[%emt 0:01:33]} Rdc7 {
[%emt 0:00:41]} 35. Rc1 {[%emt 0:00:38]} Kf7 {[%emt 0:01:48]} 36. Kb3 {[%emt 0:
00:00]} h5 {[%emt 0:00:58]} 37. Rb6 {[%emt 0:02:24]} Ke7 {[%emt 0:00:32]} 38.
g3 {[%emt 0:04:39]} Rf8 {[%emt 0:00:33]} 39. Rc3 {[%emt 0:00:55]} Rf6 {[%emt 0:
00:00]} 40. Kb4 {[%emt 0:02:15]} g5 {[%emt 0:00:38]} 41. Rd3 {[%emt 0:40:24]}
h4 {[%emt 0:02:04]} 42. gxh4 {[%emt 0:00:00]} gxh4 {[%emt 0:00:00]} 43. Kc3 {
[%emt 0:00:00]} Ra7 {[%emt 0:10:50]} 44. Kb4 {[%emt 0:00:00]} h3 {[%emt 0:00:
00]} 45. f4 {[%emt 0:00:00]} exf4 {[%emt 0:00:57]} 46. Rxh3 {[%emt 0:00:00]} f3
{[%emt 0:00:18]} 47. e5 {[%emt 0:00:00]} dxe5 {[%emt 0:01:16]} 48. Rxf6 {
[%emt 0:00:00]} Kxf6 {[%emt 0:00:02]} 49. Rxf3+ {[%emt 0:00:00]} Kg5 {[%emt 0:
00:00]} 50. Kb5 {[%emt 0:00:00]} 1/2-1/2

[Event "44th Chess Olympiad Open 2022"]
[Site "Chennai"]
[Date "2022.08.07"]
[Round "9.75"]
[White "Ebosse Kingue Victor Patrick"]
[Black "Hassan Sidi Mohamed Cheikh"]
[Result "1-0"]
[WhiteElo "2054"]
[BlackElo "1825"]
[Annotator "NA"]
[PlyCount "127"]
[EventDate "2022.??.??"]
[TimeControl "60"]

1. e4 {[%emt 0:00:05]} e5 {[%emt 0:01:03]} 2. Nf3 {[%emt 0:00:12]} Nc6 {
[%emt 0:00:59]} 3. Bc4 {[%emt 0:00:45]} Nf6 {[%emt 0:00:12]} 4. d3 {[%emt 0:00:
00]} Bc5 {[%emt 0:00:15]} 5. c3 {[%emt 0:00:08]} a6 {[%emt 0:00:09]} 6. O-O {
[%emt 0:01:19]} d6 {[%emt 0:00:48]} 7. d4 {[%emt 0:01:15]} Ba7 {[%emt 0:01:48]}
8. Re1 {[%emt 0:08:46]} Bg4 {[%emt 0:05:08]} 9. Be3 {[%emt 0:06:15]} Bxf3 {
[%emt 0:05:43]} 10. Qxf3 {[%emt 0:00:13]} exd4 {[%emt 0:01:50]} 11. cxd4 {
[%emt 0:02:53]} Bxd4 {[%emt 0:01:26]} 12. Bxd4 {[%emt 0:04:48]} Nxd4 {[%emt 0:
00:00]} 13. Qc3 {[%emt 0:00:22]} Nc6 {[%emt 0:02:10]} 14. Bd5 {[%emt 0:00:23]}
Qd7 {[%emt 0:04:33]} 15. Nd2 {[%emt 0:02:02]} O-O {[%emt 0:00:35]} 16. Rac1 {
[%emt 0:00:45]} Nxd5 {[%emt 0:02:50]} 17. exd5 {[%emt 0:00:15]} Ne7 {[%emt 0:
00:00]} 18. Qxc7 {[%emt 0:03:06]} Qxc7 {[%emt 0:00:06]} 19. Rxc7 {[%emt 0:00:
00]} Nxd5 {[%emt 0:00:07]} 20. Rxb7 {[%emt 0:00:08]} Rab8 {[%emt 0:00:23]} 21.
Rxb8 {[%emt 0:01:52]} Rxb8 {[%emt 0:00:04]} 22. Nc4 {[%emt 0:00:24]} h6 {
[%emt 0:02:01]} 23. Rd1 {[%emt 0:02:46]} Rb4 {[%emt 0:03:21]} 24. b3 {[%emt 0:
00:00]} Nc3 {[%emt 0:00:20]} 25. Rd2 {[%emt 0:07:22]} d5 {[%emt 0:01:07]} 26.
Ne3 {[%emt 0:02:06]} d4 {[%emt 0:00:50]} 27. Nc4 {[%emt 0:06:45]} Rb8 {[%emt 0:
00:00]} 28. Kf1 {[%emt 0:00:49]} Rd8 {[%emt 0:01:26]} 29. f3 {[%emt 0:02:06]}
f6 {[%emt 0:01:52]} 30. Na5 {[%emt 0:04:42]} Rd6 {[%emt 0:10:47]} 31. b4 {
[%emt 0:03:51]} d3 {[%emt 0:05:04]} 32. Nb7 {[%emt 0:02:22]} Rd4 {[%emt 0:00:
00]} 33. Nc5 {[%emt 0:01:04]} Nxa2 {[%emt 0:03:43]} 34. Rxd3 {[%emt 0:07:44]}
Rxd3 {[%emt 0:02:47]} 35. Nxd3 {[%emt 0:00:08]} Kf7 {[%emt 0:00:04]} 36. Ke1 {
[%emt 0:00:39]} Ke6 {[%emt 0:00:40]} 37. Nc5+ {[%emt 0:00:29]} Kd5 {[%emt 0:00:
00]} 38. Nxa6 {[%emt 0:00:18]} Kc4 {[%emt 0:03:32]} 39. b5 {[%emt 0:02:06]}
Kxb5 {[%emt 0:01:57]} 40. Nc7+ {[%emt 0:01:55]} Kc6 {[%emt 0:00:35]} 41. Ne8 {
[%emt 0:30:18]} g6 {[%emt 0:37:10]} 42. Nxf6 {[%emt 0:00:47]} h5 {[%emt 0:00:
00]} 43. Kd2 {[%emt 0:09:20]} Nb4 {[%emt 0:00:14]} 44. Ke3 {[%emt 0:02:37]} Kd6
{[%emt 0:00:23]} 45. Kf4 {[%emt 0:03:37]} Ke6 {[%emt 0:00:16]} 46. Kg5 {
[%emt 0:00:51]} Kf7 {[%emt 0:00:14]} 47. f4 {[%emt 0:01:52]} Nd3 {[%emt 0:00:
00]} 48. f5 {[%emt 0:00:23]} gxf5 {[%emt 0:00:21]} 49. Nxh5 {[%emt 0:00:19]}
Ne1 {[%emt 0:00:45]} 50. Nf4 {[%emt 0:00:28]} Nc2 {[%emt 0:00:40]} 51. Kxf5 {
[%emt 0:01:38]} Kg7 {[%emt 0:00:45]} 52. Kg5 {[%emt 0:00:21]} Ne3 {[%emt 0:00:
00]} 53. h4 {[%emt 0:00:30]} Kh8 {[%emt 0:00:48]} 54. g4 {[%emt 0:00:36]} Kg7 {
[%emt 0:00:33]} 55. h5 {[%emt 0:00:34]} Kh7 {[%emt 0:00:15]} 56. Kh4 {[%emt 0:
00:00]} Kg7 {[%emt 0:00:25]} 57. g5 {[%emt 0:00:36]} Nf5+ {[%emt 0:00:05]} 58.
Kg4 {[%emt 0:00:26]} Ne3+ {[%emt 0:00:06]} 59. Kf3 {[%emt 0:00:19]} Nf5 {
[%emt 0:00:09]} 60. Ke4 {[%emt 0:00:21]} Ng3+ {[%emt 0:00:09]} 61. Ke5 {
[%emt 0:01:57]} Nxh5 {[%emt 0:00:24]} 62. Nxh5+ {[%emt 0:00:19]} Kg6 {[%emt 0:
00:00]} 63. Kf4 {[%emt 0:00:16]} Kxh5 {[%emt 0:00:11]} 64. Kf5 {[%emt 0:00:10]}
1-0

[Event "44th Chess Olympiad Open 2022"]
[Site "Chennai"]
[Date "2022.08.07"]
[Round "9.75"]
[White "Cheikhna, Mohamed Lemine"]
[Black "Amba Oyon Marius Claude"]
[Result "0-1"]
[WhiteElo "1899"]
[BlackElo "1938"]
[Annotator "NA"]
[PlyCount "86"]
[EventDate "2022.??.??"]
[TimeControl "60"]

1. Nf3 {[%emt 0:01:51]} d5 {[%emt 0:01:21]} 2. d4 {[%emt 0:00:00]} Nf6 {
[%emt 0:02:00]} 3. Bf4 {[%emt 0:00:00]} g6 {[%emt 0:03:17]} 4. e3 {[%emt 0:00:
00]} Bg7 {[%emt 0:00:26]} 5. Bd3 {[%emt 0:01:46]} O-O {[%emt 0:00:30]} 6. Nbd2
{[%emt 0:00:48]} c5 {[%emt 0:01:42]} 7. c3 {[%emt 0:00:27]} Nc6 {[%emt 0:00:29]
} 8. O-O {[%emt 0:00:17]} Re8 {[%emt 0:03:36]} 9. h3 {[%emt 0:01:40]} Nd7 {
[%emt 0:09:17]} 10. Bc2 {[%emt 0:08:31]} e5 {[%emt 0:03:48]} 11. dxe5 {[%emt 0:
00:00]} Ndxe5 {[%emt 0:00:47]} 12. Nxe5 {[%emt 0:02:30]} Nxe5 {[%emt 0:01:17]}
13. Bxe5 {[%emt 0:09:07]} Bxe5 {[%emt 0:00:59]} 14. Nf3 {[%emt 0:00:42]} Bf6 {
[%emt 0:00:19]} 15. Qd2 {[%emt 0:00:50]} Qb6 {[%emt 0:03:49]} 16. Bb3 {[%emt 0:
00:00]} Bf5 {[%emt 0:06:52]} 17. Qxd5 {[%emt 0:13:55]} Be6 {[%emt 0:17:41]} 18.
Qd1 {[%emt 0:02:38]} Rad8 {[%emt 0:00:31]} 19. Qc1 {[%emt 0:01:23]} Bxb3 {
[%emt 0:12:25]} 20. axb3 {[%emt 0:00:20]} Qxb3 {[%emt 0:00:27]} 21. Rxa7 {
[%emt 0:01:29]} Rd7 {[%emt 0:00:25]} 22. Ra3 {[%emt 0:00:26]} Qb5 {[%emt 0:00:
00]} 23. Qc2 {[%emt 0:02:18]} Red8 {[%emt 0:01:56]} 24. Rfa1 {[%emt 0:08:38]}
Kg7 {[%emt 0:02:27]} 25. Ra8 {[%emt 0:08:23]} Rd1+ {[%emt 0:04:37]} 26. Rxd1 {
[%emt 0:00:52]} Rxa8 {[%emt 0:00:08]} 27. b3 {[%emt 0:07:37]} Ra3 {[%emt 0:00:
00]} 28. Rb1 {[%emt 0:06:38]} Qa6 {[%emt 0:07:14]} 29. c4 {[%emt 0:01:50]} Qa5
{[%emt 0:02:33]} 30. Qd3 {[%emt 0:03:34]} Qc7 {[%emt 0:06:47]} 31. Qd5 {
[%emt 0:01:58]} Ra8 {[%emt 0:00:51]} 32. Qe4 {[%emt 0:04:54]} Rd8 {[%emt 0:00:
00]} 33. Qf4 {[%emt 0:01:00]} Qe7 {[%emt 0:01:34]} 34. e4 {[%emt 0:01:19]} Bc3
{[%emt 0:02:25]} 35. Qe3 {[%emt 0:01:16]} Bb4 {[%emt 0:00:22]} 36. Qf4 {
[%emt 0:01:28]} Rd3 {[%emt 0:00:57]} 37. Ne5 {[%emt 0:02:01]} Bd2 {[%emt 0:00:
00]} 38. Qh2 {[%emt 0:00:51]} Rd4 {[%emt 0:01:05]} 39. Nf3 {[%emt 0:00:21]}
Qxe4 {[%emt 0:00:45]} 40. Nxd2 {[%emt 0:00:37]} Qxb1+ {[%emt 0:00:22]} 41. Nf1
{[%emt 0:30:32]} Qe1 {[%emt 0:30:47]} 42. g3 {[%emt 0:00:58]} Rd1 {[%emt 0:00:
00]} 43. f4 {[%emt 0:00:00]} Qxf1# {[%emt 0:00:00]} 0-1

[Event "44th Chess Olympiad Open 2022"]
[Site "Chennai"]
[Date "2022.08.07"]
[Round "9.75"]
[White "Zebaze Dongmo Loic Dylane"]
[Black "Boidiya, Sidi"]
[Result "1/2-1/2"]
[WhiteElo "1837"]
[BlackElo "1997"]
[Annotator "NA RC"]
[PlyCount "108"]
[EventDate "2022.??.??"]
[TimeControl "60"]

1. d4 {[%emt 0:00:02]} d5 {[%emt 0:00:03]} 2. Bf4 {[%emt 0:00:13]} Nf6 {
[%emt 0:00:06]} 3. e3 {[%emt 0:00:06]} e6 {[%emt 0:00:03]} 4. Nd2 {[%emt 0:00:
00]} Bd6 {[%emt 0:00:13]} 5. Bg3 {[%emt 0:00:11]} c5 {[%emt 0:00:09]} 6. c3 {
[%emt 0:00:06]} O-O {[%emt 0:00:08]} 7. Ngf3 {[%emt 0:00:08]} Qc7 {[%emt 0:00:
00]} 8. Bd3 {[%emt 0:01:00]} Nbd7 {[%emt 0:00:07]} 9. O-O {[%emt 0:05:07]} e5 {
[%emt 0:03:31]} 10. dxe5 {[%emt 0:00:05]} Nxe5 {[%emt 0:00:08]} 11. Nxe5 {
[%emt 0:00:06]} Bxe5 {[%emt 0:00:08]} 12. Nf3 {[%emt 0:00:17]} Bxg3 {[%emt 0:
00:00]} 13. hxg3 {[%emt 0:00:09]} Bg4 {[%emt 0:00:16]} 14. Be2 {[%emt 0:02:30]}
Rad8 {[%emt 0:00:35]} 15. Qa4 {[%emt 0:00:31]} Rfe8 {[%emt 0:00:45]} 16. Rfe1 {
[%emt 0:02:54]} a6 {[%emt 0:01:46]} 17. Rad1 {[%emt 0:10:03]} Qb6 {[%emt 0:00:
00]} 18. Qb3 {[%emt 0:00:46]} Qc6 {[%emt 0:00:10]} 19. c4 {[%emt 0:06:00]} Be6
{[%emt 0:07:00]} 20. Ng5 {[%emt 0:04:13]} dxc4 {[%emt 0:00:45]} 21. Bxc4 {
[%emt 0:00:37]} Bxc4 {[%emt 0:04:33]} 22. Qxc4 {[%emt 0:00:28]} Rd5 {[%emt 0:
00:00]} 23. Rxd5 {[%emt 0:18:05]} Qxd5 {[%emt 0:00:20]} 24. Qxd5 {[%emt 0:00:
00]} Nxd5 {[%emt 0:00:08]} 25. Rd1 {[%emt 0:00:12]} Nf6 {[%emt 0:00:22]} 26.
Kf1 {[%emt 0:01:07]} h6 {[%emt 0:02:30]} 27. Nf3 {[%emt 0:00:22]} Kf8 {[%emt 0:
00:00]} 28. Ke2 {[%emt 0:01:15]} Ke7 {[%emt 0:01:20]} 29. Ne5 {[%emt 0:05:05]}
Rc8 {[%emt 0:05:20]} 30. f3 {[%emt 0:01:03]} b5 {[%emt 0:01:15]} 31. b3 {
[%emt 0:01:27]} Ke6 {[%emt 0:06:57]} 32. Nd3 {[%emt 0:00:11]} Nd5 {[%emt 0:00:
00]} 33. Nf4+ {[%emt 0:03:08]} Nxf4+ {[%emt 0:00:12]} 34. gxf4 {[%emt 0:01:25]}
c4 {[%emt 0:00:08]} 35. bxc4 {[%emt 0:01:04]} Rxc4 {[%emt 0:00:22]} 36. Rd2 {
[%emt 0:01:03]} g5 {[%emt 0:04:01]} 37. fxg5 {[%emt 0:01:14]} hxg5 {[%emt 0:00:
00]} 38. g4 {[%emt 0:00:49]} b4 {[%emt 0:03:13]} 39. Rb2 {[%emt 0:02:47]} Kd5 {
[%emt 0:02:23]} 40. Kd2 {[%emt 0:02:59]} a5 {[%emt 0:01:10]} 41. Rb3 {[%emt 0:
00:00]} Rc5 {[%emt 0:32:53]} 42. Rd3+ {[%emt 0:11:44]} Kc6 {[%emt 0:04:35]} 43.
f4 {[%emt 0:12:23]} Rd5 {[%emt 0:00:00]} 44. Rxd5 {[%emt 0:00:00]} Kxd5 {
[%emt 0:00:00]} 45. Kd3 {[%emt 0:00:00]} f6 {[%emt 0:00:00]} 46. e4+ {[%emt 0:
00:00]} Ke6 {[%emt 0:00:00]} 47. fxg5 {[%emt 0:00:00]} fxg5 {[%emt 0:00:00]}
48. Kc4 {[%emt 0:00:00]} Ke5 {[%emt 0:00:29]} 49. Kb5 {[%emt 0:00:00]} Kxe4 {
[%emt 0:00:03]} 50. Kxa5 {[%emt 0:00:00]} Kf4 {[%emt 0:00:00]} 51. Kxb4 {
[%emt 0:00:00]} Kxg4 {[%emt 0:00:00]} 52. a4 {[%emt 0:00:00]} Kh3 {[%emt 0:00:
00]} 53. a5 {[%emt 0:00:00]} g4 54. a6 {[%emt 0:00:00]} g3 {[%emt 0:00:00]}
1/2-1/2